Cogmind - Beta 12 @@@ ROGUE MODE // 2023.04.19 @ 15:37:29 Player: Mr Goldstein Result: Destroyed by as-49842 with Assembled Heavy Rifle Performance ------------- Evolutions (0) 0 Regions Visited (2) 400 Robots Destroyed (29) 145 Value Destroyed (672) 672 Prototype IDs (2) 40 Alien Tech Used (0) 0 Bonus (-25) -25 TOTAL SCORE: 1232 Bonus ------- Friendly Fire -25 Cogmind --------- Core Integrity 0/250 Matter 82/300 Energy 100/100 System Corruption 16% Temperature Cool (0) Movement Rolling (175) Ox5 Location -10/Mines Parts ------- > --- POWER (1) -------- (None) > --- PROPULSION (2) --- Compact Wheel > --- UTILITY (2) ------ Huge Storage Unit Propulsion Shielding > --- WEAPON (2) ------- Light Cannon Light Cannon > --- INVENTORY (25) --- Light Ion Engine Compact Wheel Heat Sink Improved Heat Sink Large Matter Pod (150) Utility Shielding EM Pulse Gun Light Assault Rifle Light Cannon Grenade Launcher Makeshift Spear Peak State ------------ > --- POWER ------------ Light Nuclear Core > --- PROPULSION ------- Compact Wheel Compact Wheel > --- UTILITY ---------- Huge Storage Unit Propulsion Shielding > --- WEAPON ----------- Light Cannon Light Cannon > --- INVENTORY -------- Light Ion Engine Heat Sink Improved Heat Sink Large Matter Pod EM Pulse Gun Light Assault Rifle Light Cannon Grenade Launcher [Rating: 10] Favorites ----------- Power Ion Engine Engine Ion Engine Power Core Light Nuclear Core Propulsion Compact Wheel Wheel Compact Wheel Utility Propulsion Shielding Storage Huge Storage Unit Protection Propulsion Shielding Weapon Light Cannon Ballistic Gun Assault Rifle Ballistic Cannon Light Cannon Launcher Grenade Launcher Build | -11 -10 -10 ------- Run | Jun Mat Min Slots Evolved . | . . . Power . | . . . Propulsion . | . . . Utility . | . . . Weapon . | . . . Parts Attached 20 | 7 12 1 Power 3 | 2 1 . Engine 2 | 2 . . Core 1 | . 1 . Reactor . | . . . Propulsion 5 | 2 3 . Treads . | . . . Leg . | . . . Wheel 5 | 2 3 . Hover . | . . . Flight . | . . . Utility 4 | 1 3 . Device . | . . . Storage 3 | 1 2 . Processor . | . . . Hackware . | . . . Protection 1 | . 1 . Artifact . | . . . Weapon 8 | 2 5 1 Energy Gun . | . . . Energy Cannon . | . . . Ballistic Gun 2 | 2 . . Ballistic Cannon 5 | . 4 1 Launcher 1 | . 1 . Special Weapon . | . . . Impact Weapon . | . . . Slashing Weapon . | . . . Piercing Weapon . | . . . Special Melee Weapon . | . . . Unidentified Prototypes . | . . . Corrupted Parts 3 | . 3 . System Corruption 16 | . 16 . Parts Lost 5 | . 3 2 Power 2 | . 1 1 Propulsion 2 | . 1 1 Utility . | . . . Weapon 1 | . 1 . Highest Loss Streak 1 | . 1 1 To Critical Strikes . | . . . Average Slot Usage (%) 96 | . 97 92 Engine 7 | . 9 . Core 6 | . 4 13 Wheel 24 | . 26 21 Storage 13 | . 13 14 Protection 13 | . 13 14 Ballistic Gun 8 | . 11 . Ballistic Cannon 19 | . 16 28 Naked Turns . | . . . Heaviest Build 92 | 14 92 92 Greatest Support 32 | 26 32 32 Greatest Overweight (x) 5 | . 5 5 Average Overweight (x) 2 | . 2 2 Largest Inventory Capacity 25 | 8 25 25 Average Capacity 22 | 7 22 25 Most Carried 14 | 3 14 11 Average Carried 9 | 1 9 10 Final Capacity 25 | 8 25 25 Final Carried 11 | 3 10 11 Class Distribution -------------------- 100% | Mutant Dominant Class ---------------- Mutant | -10/Materials Mutant | -10/Mines Resources | -11 -10 -10 ----------- Run | Jun Mat Min Matter Collected 811 | 276 490 45 Remotely . | . . . Salvage Created 967 | 84 799 84 Parts 57 | 4 51 2 Haulers Intercepted 2 | . 2 . Recyclers Shooed 5 | . 5 . Parts Field Recycled . | . . . Retrieved Matter . | . . . Parts Self-Destructed . | . . . Prevented . | . . . Kills | -11 -10 -10 ------- Run | Jun Mat Min Combat Hostiles Destroyed 25 | . 16 9 Guns 11 | . 11 . Cannons 14 | . 5 9 Classes Destroyed 7 | 1 5 1 Worker 3 | . 2 1 Hauler 2 | . 2 . Recycler 3 | 1 2 . Watcher 3 | . 3 . Swarmer 3 | . 3 . Grunt 15 | . 13 2 Assembled 7 | . . 7 Best Kill Streak 7 | 1 6 7 Combat Bots Only 7 | . 3 7 Max Kills in Single Turn 2 | 1 2 2 Gunslinging 1 | . 1 . Exploded . | . . . Melee . | . . . Uniques/NPCs Destroyed . | . . . Combat | -11 -10 -10 -------- Run | Jun Mat Min Damage Taken 841 | . 526 315 Core 253 | . 124 129 Absorbed by Shields . | . . . Redirected to Shielding 29 | . 24 5 Regen/Repaired (Parts) 449 | . 449 . Core Remaining (%) 100 | 100 . . Volleys Fired 87 | 1 60 26 Largest 2 | 2 2 2 Hottest 70 | 40 70 70 Shots Fired 174 | 2 123 49 Gun 80 | 2 78 . Cannon 94 | . 45 49 Launcher . | . . . Special . | . . . Kinetic 174 | 2 123 49 Thermal . | . . . Explosive . | . . . Electromagnetic . | . . . Robot Hit Streak 11 | 2 11 4 Robot Miss Streak 5 | . 3 5 Penetration Max . | . . . Secondary Targets 1 | . 1 . Max Gunslinging Chain 1 | . 1 . Shots Hit Robots 107 | 2 78 27 Core Hits 48 | 2 32 14 Critical Kills . | . . . Critical Parts Destroyed 2 | . 2 . Critical Strikes 5 | . 4 1 Destroy 2 | . 2 . Blast 3 | . 2 1 Melee Attacks . | . . . Impact . | . . . Slashing . | . . . Piercing . | . . . Sneak Attacks . | . . . Combat Hostiles . | . . . Follow-up Attacks . | . . . Damage Inflicted 1730 | 25 1197 508 Guns 684 | 25 659 . Cannons 1046 | . 538 508 Explosions . | . . . Melee . | . . . Ramming . | . . . Kinetic 1730 | 25 1197 508 Thermal . | . . . Explosive . | . . . Electromagnetic . | . . . Impact . | . . . Slashing . | . . . Piercing . | . . . Highest Corruption 16 | . 16 16 Average Corruption 14 | . 11 16 Corruption Purged . | . . . Corruption Blocked . | . . . Effects 33 | . 13 20 Message Errors 8 | . 5 3 Matter Fused 8 | . 3 5 Heat Flow Errors 2 | . 1 1 Energy Discharges 4 | . 1 3 Data Loss (minor) 2 | . . 2 Data Loss (major) 3 | . . 3 Misfires 3 | . 3 . Weapon Failures 3 | . . 3 Overload Shots . | . . . Overflow Damage 24 | . 16 8 Projectiles 14 | . 6 8 Explosions 10 | . 10 . Melee . | . . . Knockbacks 15 | . 9 6 Impact . | . . . Kinetic 15 | . 9 6 Secondary . | . . . Self-Inflicted Damage 57 | . 57 . Shots 2 | . 2 . Rammed . | . . . Targets Rammed . | . . . Kicked . | . . . Crushed . | . . . Highest Temperature 181 | . 181 162 Average Temperature 36 | . 24 48 Received Heat Transfer 222 | . 213 9 Siege Activations . | . . . Robots Corrupted . | . . . Combat Hostiles . | . . . Parts Fried . | . . . Impact Corruptions . | . . . Robots Melted . | . . . Combat Hostiles . | . . . Parts Melted . | . . . Heat Transferred . | . . . Parts Sabotaged . | . . . Parts Stolen . | . . . Parts Stripped . | . . . Power Chain Reactions 1 | . 1 . Missiles Intercepted . | . . . Alert | -11 -10 -10 ------- Run | Jun Mat Min Peak Influence 379 | 5 379 141 Initial 90 | . 3 90 Average 210 | 1 260 100 Maximum Alert Level 1 | . 1 . Low Security (%) 44 | 100 21 100 Level 1 55 | . 78 . Level 2 . | . . . Level 3 . | . . . Level 4 . | . . . Level 5 . | . . . High Security . | . . . Max Security . | . . . Squads Dispatched 7 | . 7 . Investigation 5 | . 5 . Extermination . | . . . Reinforcement 2 | . 2 . Assault . | . . . Garrison . | . . . Intercept . | . . . Searches Triggered . | . . . Construction Impeded . | . . . Haulers Reinforced . | . . . Active Scanning Responses . | . . . Cargo Convoy Interrupts . | . . . Stealth | -11 -10 -10 --------- Run | Jun Mat Min Distress Signals . | . . . Communications Jammed . | . . . Distress Signals . | . . . Times Spotted 43 | . 24 19 Peak Tracking Total 18 | . 4 18 Tactical Retreats 5 | . 2 3 Traps | -11 -10 -10 ------- Run | Jun Mat Min Traps Triggered 4 | . 4 . Indirectly . | . . . Trap Hack Attempts . | . . . Triggered . | . . . Disarmed . | . . . Reprogrammed . | . . . Reused . | . . . Traps Extracted . | . . . Installed . | . . . Triggered . | . . . Machines | -11 -10 -10 ---------- Run | Jun Mat Min Machines Disabled 2 | . 2 . Max in Single Turn 2 | . 2 . Machines Repaired . | . . . Machines Sabotaged . | . . . Overloaded Fab Kills . | . . . Hacking | -11 -10 -10 --------- Run | Jun Mat Min Machines Accessed 8 | . 7 1 Terminals 6 | . 5 1 Fabricators . | . . . Repair Stations 1 | . 1 . Recycling Units 1 | . 1 . Scanalyzers . | . . . Garrison Access . | . . . Total Hacks 22 | . 20 2 Successful 12 | . 11 1 Failed 9 | . 8 1 Catastrophic . | . . . Database Lockouts 1 | . 1 . Manual 13 | . 11 2 Terminals 18 | . 16 2 Fabricators . | . . . Repair Stations 2 | . 2 . Recycling Units 2 | . 2 . Scanalyzers . | . . . Garrison Access . | . . . Terminal Hacks 4 | . 3 1 Robot Analysis 3 | . 2 1 Prototype ID Bank 1 | . 1 . Fabricator Hacks . | . . . Repair Station Hacks 2 | . 2 . Scan Component 1 | . 1 . Repair 1 | . 1 . Recycling Unit Hacks 2 | . 2 . Retrieve Matter 1 | . 1 . Retrieve Components 1 | . 1 . Scanalyzer . | . . . Garrison Access Hacks . | . . . Unauthorized Hacks 4 | . 4 . Terminals 4 | . 4 . Botnet 4 | . 4 . Fabricators . | . . . Repair Stations . | . . . Recycling Units . | . . . Scanalyzers . | . . . Garrison Access . | . . . Data Cores Recovered . | . . . Used . | . . . Hacking Detections 6 | . 5 1 Full Trace Events 2 | . 2 . Feedback Events . | . . . Feedback Blocked . | . . . Robot Schematics Acquired . | . . . Robots Built . | . . . Authchips . | . . . Time . | . . . Total Robot Build Rating . | . . . Part Schematics Acquired . | . . . Parts Built . | . . . Authchips . | . . . Time . | . . . Total Part Build Rating . | . . . Parts Repaired 1 | . 1 . Time 26 | . 26 . Parts Recycled . | . . . Recycled Matter . | . . . Retrieved Matter 190 | . 190 . Retrieved Components 9 | . 9 . Parts Scanalyzed . | . . . Part Schematics Acquired . | . . . Parts Damaged . | . . . Bothacking | -11 -10 -10 ------------ Run | Jun Mat Min Used RIF Installer . | . . . Robots Hacked . | . . . Non-combat . | . . . Combat . | . . . Robot Hacks Applied . | . . . Relay Couplers Released . | . . . Fabnet Peak Effective % . | . . . Robots Rewired . | . . . Allies Hacked . | . . . Hacks Repelled . | . . . Allies | -11 -10 -10 -------- Run | Jun Mat Min Total Allies 2 | . . 2 Largest Group 2 | . . 2 Highest-Rated Group 42 | . . 42 Highest-Rated Ally 31 | . . 31 Total Orders . | . . . Ally Attacks 5 | . . 5 Total Damage 83 | . . 83 Kills . | . . . Allies Corrupted . | . . . Allies Melted . | . . . Intel | -11 -10 -10 ------- Run | Jun Mat Min Robot Analysis Total 3 | . 2 1 Derelict Logs Recovered 1 | . . 1 Drone Launches . | . . . Drone Recoveries . | . . . Exploration | -11 -10 -10 ------------- Run | Jun Mat Min Turns Passed 1699 | 71 1211 417 Spaces Moved 939 | 65 640 234 Core 6 | 6 . . Treads . | . . . Legs . | . . . Wheels 933 | 59 640 234 Hover . | . . . Flight . | . . . Fastest Speed 50 | 50 90 130 Average Speed 130 | 86 130 142 Slowest Speed 175 | 100 175 175 Overloaded Moves . | . . . Propulsion Burnouts . | . . . Robots Hopped . | . . . Cave-ins Triggered . | . . . Exploration Rate (%) 45 | 3 88 46 Regions Visited 2 Branch Regions 1 Pre-discovered Areas . | . . . Known Exits Taken . | . . . Unknown Exits Taken 2 | 1 1 . Scrap Searched 1 | . . 1 Spaces Dug . | . . . Terrain Destroyed 5 | . 5 . Melee . | . . . Projectile . | . . . AOE 5 | . 5 . Terrain Rammed . | . . . Walls Destroyed . | . . . Machines Disabled . | . . . Actions | -11 -10 -10 --------- Run | Jun Mat Min Total 1236 | 74 895 267 Wait 169 | . 164 5 Move 937 | 64 639 234 Hop . | . . . Pick Up 21 | 2 18 1 Fast Attach 12 | 6 6 . Attach 2 | . 2 . Detach . | . . . Swap 6 | 1 4 1 Drop 2 | . 2 . Fire 87 | 1 60 26 Melee . | . . . Ram . | . . . Kick . | . . . Crush . | . . . Escape Stasis . | . . . Rewire . | . . . Trap . | . . . Miscellaneous . | . . . Route ------- -11/Junkyard -10/Materials (discovered 4 exits: [*Mat x3] / *Min) -10/Mines History --------- Turn | Location | Event 22 | -11/Junkyard | Discovered new exit (range 16) 72 | -11/Junkyard | Entered Materials 306 | -10/Materials | Build established: Mutant 309 | -10/Materials | Discovered new exit (range 16) 513 | -10/Materials | Discovered new exit (range 10) 631 | -10/Materials | Discovered new exit (range 16) 632 | -10/Materials | Central database locked down 916 | -10/Materials | Repaired Huge Storage Unit 941 | -10/Materials | System corruption reached 10% 979 | -10/Materials | Discovered new exit (range 15) 1283 | -10/Materials | Entered Mines 1445 | -10/Mines | A weapon hastily lodged in a ceiling crevice suddenly fell to the ground 1567 | -10/Mines | Learned Materials terminal intel 1609 | -10/Mines | Assembled infested the area 1637 | -10/Mines | Core integrity fell below 50% 1691 | -10/Mines | Core integrity fell below 20% 1700 | -10/Mines | Destroyed by as-49842 with Assembled Heavy Rifle Last Messages --------------- 01651_ System corrupted: Component data lost. 01653_ as-37060 knocked back. 01656_ as-37060 destroyed. 01662_ as-80068 knocked back. 01668_ System corrupted: Energy discharge (-52). 01668_ as-80068 knocked back. 01671_ as-80068 destroyed. 01677_ as-98586 sneak attacks. 01677_ T-07 Excavator destroyed. 01677_ Destroyed Asb. Hover Unit. 01677_ as-98586 destroyed. 01681_ K-01 Serf destroyed. 01684_ GUTZEX04FCW/IU#T CEXDTH#BM6CK9J9B|2UJ 01684_ as-49842 knocked back. 01684_ Lgt. Nuclear Core destroyed. 01688_ Acquired 1 matter. 01690_ as-06401 knocked back. 01692_ Knocked back. 01693_ as-06401 destroyed. 01699_ System corrupted: Matter fused (-7). Map ----- +----------------------------------------------------+ | | | | | | | | | | | | | ????????????????????????????????????????????????? | | ????????????????????????????????????????????????? | | ????????????????????????????????????????????????? | | ????????????????????????????????????????????????? | | ????????????????????????????????????????????????? | | ???????????????????????"????????????????????????? | | ???????????????????????"????????????????????????? | | ??????????????????????? ???????????????????????? | | ####???????????????????" ???????????????????????? | | #???????????????????" ???????????????????????? | | #???????????????????" """????????????????????? | | ## #??????????????????? ????????????????????? | | ## #???????????????????? ""?????????????????????? | | #???????????????????? ""?????????????????????? | | ## #????????????????????%""?????????????????????? | | ## ####?????????????????%%=?????????????????????? | | ##????????????????#a#?????????????????????? | | ##?????###???????#%#?????????????????????? | | #????## ####### #?????????????????????? | | #???## % %% % @#?????????????????????? | | ##??# ##%######?????????????????????? | | #??# ?# ########## ??????? | | ##??## ?# ! ] #????????????? | | # ###?????# ## ####### ## #?????????????? | | ## ##????????# # #?????????????????????????? | | ## #?????????# #?????????????????????????? | | # #?????????# #?????????????????????????? | | #?????????## ##????????????????????????? | | #??????????## ##???????????????????????? | | #???????????## #???????????????????????? | | # ##????????????## #???????????????????????? | | ## ##?????????????## #???????????????????????? | | ?# #?????????????## ##???????????????????????? | | ?# #?????????????# ##???????????????????????? | | ?# #????????????## ##??????????????????????? | | ?# #???????????## #??????????????????????? | | ?# ####???###### #??????????????????????? | | ## ##??# #??????????????????????? | | % #### #??????????????????????? | | ## ##??????????????????????? | | ### # #???????????????????????? | | ###%######## #???????????????????????? | | % #?????? #??????????????????????? | | ### #????? ### #??????????????????????? | +----------------------------------------------------+ Best States ------------- Heat Dissipation 25 Energy Generation 14 Energy Capacity 250 Matter Stores 300 Matter Capacity 300 Sight Range 16 Terrain Scan Density 10 Propulsion Shielding 33 Evasion (%) 42 Item Schematics ----------------- None Robot Schematics ------------------ None Fabricated ------------ Nothing Alien Tech Used ----------------- None Achievements -------------- None Challenges ------------ None Game ------ Seed SkeletonGaussLauncher Manual? 0 Play Time 00:12:34 Cumulative 126.7 hours Start 2023.04.19 @ 15:27:24 End 2023.04.19 @ 15:37:29 Sessions 1 Manual Loads 0 Difficulty Rogue Special Mode None Game No. 364 Rogue 364 Adventurer 0 Explorer 0 Win Type - Total 4 Types 4/0/0/0/0/0/0/0/0 Lore% 60 Gallery% 63 Achievement% 54 Wizard Run 0 Options --------- ASCII 0 Keyboard 0 Movement Arrows Keybinds 0 Fullscreen 1 Font 12/Smallcaps Map View 83x54 Tactical HUD 1 Map Filters NONE Filters NONE Steam 1 RUN: 85593e4b-9e63-4e70-9ab8-87dbe77e0701